Cogmind - Beta 15 @@@ ROGUE MODE // 2025.08.02 @ 23:46:29 Player: Mogwok Wargfriend Result: Destroyed by G-50 Soldier with Heavy Laser Performance ------------- Evolutions (3) 1500 Regions Visited (8) 1600 Robots Destroyed (192) 960 Value Destroyed (6218) 6218 Prototype IDs (29) 580 Alien Tech Used (0) 0 Bonus (1979) 1979 TOTAL SCORE: 12837 Bonus ------- High Alert Combat Kills 1230 Follower Combat Kills 468 Entered Garrisons 200 Aligned with FarCom 300 Friendly Fire -219 Cogmind --------- Core Integrity 0/700 Matter 213/300 Energy 300/310 System Corruption 10% Temperature Cool (11) Movement Walking (190) Ox1 Location -7/Factory Parts ------- > --- POWER (1) -------- Heavy Deuterium Engine > --- PROPULSION (2) --- Carbon-fiber Leg Improved Carbon-fiber Leg > --- UTILITY (7) ------ Improved Heat Sink Coolant Injector Large Storage Unit Improved Targeting Computer Armor Integrity Analyzer Hacking Suite System Shield > --- WEAPON (3) ------- Assault Cannon Assault Cannon Power Maul > --- INVENTORY (15) --- Improved Deuterium Engine Carbon-fiber Leg Improved Carbon-fiber Leg Coolant Injector Large Storage Unit High-capacity Battery (250) Improved Target Analyzer Heavy Phase Cannon Assault Cannon Magnetic Acceleration Cannon Magnetic Acceleration Cannon Heavy Rocket Launcher Mace Peak State ------------ > --- POWER ------------ Improved Deuterium Engine > --- PROPULSION ------- Improved Carbon-fiber Leg Improved Carbon-fiber Leg > --- UTILITY ---------- Improved Cooling System Coolant Injector Large Storage Unit Improved Target Analyzer Armor Integrity Analyzer Hacking Suite System Shield > --- WEAPON ----------- Magnetic Acceleration Cannon Heavy Linear Accelerator > --- INVENTORY -------- Improved Deuterium Engine Carbon-fiber Leg Improved Carbon-fiber Leg Improved Heat Sink Coolant Injector Large Storage Unit High-capacity Battery Improved Target Analyzer Heavy Phase Cannon Gauss Rifle Magnetic Acceleration Cannon Magnetic Acceleration Cannon Heavy Rocket Launcher Mace Power Maul [Rating: 62] Favorites ----------- Power Heavy Ion Engine Engine Heavy Ion Engine Power Core Light Nuclear Core Propulsion Armored Wheel Leg Carbon-fiber Leg Wheel Armored Wheel Utility Large Storage Unit Device Coolant Injector Storage Large Storage Unit Processor Armor Integrity Analyzer Hackware System Shield Protection Hardened Light Armor Plating Weapon Arc Projector Energy Gun Arc Projector Energy Cannon Light EM Pulse Cannon Ballistic Gun Gauss Rifle Ballistic Cannon Magnetic Acceleration Cannon Launcher Heavy Rocket Launcher Special Weapon Remote Datajack Impact Weapon Power Maul Build | -11 -10 -10 -10 -9 -8 -7 -7 -7 ------- Run | Yrd Mat Min Exi Min Mat Fac Gar Fac Slots Evolved 6 | . . . . . 4 2 . . Power . | . . . . . . . . . Propulsion . | . . . . . . . . . Utility 5 | . . . . . 4 1 . . Weapon 1 | . . . . . . 1 . . Parts Attached 112 | 7 4 . . . 30 26 35 10 Power 11 | 1 1 . . . 2 2 4 1 Engine 9 | 1 1 . . . 2 2 2 1 Core 2 | . . . . . . . 2 . Reactor . | . . . . . . . . . Propulsion 25 | 2 2 . . . 6 6 9 . Treads . | . . . . . . . . . Leg 7 | . . . . . . . 7 . Wheel 18 | 2 2 . . . 6 6 2 . Hover . | . . . . . . . . . Flight . | . . . . . . . . . Utility 43 | 2 1 . . . 13 12 8 7 Device 24 | 1 . . . . 7 6 5 5 Storage 4 | 1 1 . . . . 1 . 1 Processor 3 | . . . . . . 1 1 1 Hackware 2 | . . . . . 1 1 . . Protection 10 | . . . . . 5 3 2 . Artifact . | . . . . . . . . . Weapon 33 | 2 . . . . 9 6 14 2 Energy Gun 14 | 2 . . . . 8 3 1 . Energy Cannon 7 | . . . . . . 2 5 . Ballistic Gun 1 | . . . . . . . 1 . Ballistic Cannon 6 | . . . . . . . 4 2 Launcher 1 | . . . . . . . 1 . Special Weapon 2 | . . . . . 1 1 . . Impact Weapon 2 | . . . . . . . 2 . Slashing Weapon . | . . . . . . . . . Piercing Weapon . | . . . . . . . . . Special Melee Weapon . | . . . . . . . . . Unidentified Prototypes 6 | . . . . . 3 2 . 1 Corrupted Parts 1 | . . . . . . 1 . . System Corruption 1 | . . . . . . 1 . . Parts Lost 38 | . 1 . . . 4 14 15 4 Power 7 | . 1 . . . . 2 3 1 Propulsion 11 | . . . . . 2 4 4 1 Utility 10 | . . . . . . 6 3 1 Weapon 10 | . . . . . 2 2 5 1 Highest Loss Streak 4 | . 1 . . . 2 4 4 3 To Critical Strikes . | . . . . . . . . . Average Backups 13 | 2 8 13 13 15 14 14 14 14 Power 1 | . . . . . . 1 2 1 Propulsion 1 | . 1 2 2 2 2 2 1 1 Utility 4 | . 1 4 4 6 5 4 4 4 Weapon 6 | 1 4 7 7 7 6 5 5 7 Tool/Special . | . . . . . . . . . Unused Backups 31 | . 2 . . . 11 6 6 6 Power 7 | . 1 . . . 1 2 2 1 Propulsion 3 | . 1 . . . 1 . . 1 Utility 4 | . . . . . 2 . . 2 Weapon 16 | . . . . . 7 4 3 2 Tool/Special 1 | . . . . . . . 1 . Average Slot Usage (%) 96 | . 100 100 100 100 98 94 95 90 Engine 7 | . 14 14 14 14 9 6 4 6 Leg 4 | . . . . . . . 8 14 Wheel 12 | . 28 28 28 28 17 14 5 . Device 15 | . 14 14 14 14 17 14 15 14 Storage 8 | . 14 14 14 14 9 7 7 7 Processor 6 | . . . . . . 6 10 15 Hackware 9 | . . . . . 8 7 15 15 Protection 7 | . . . . . 17 12 2 . Energy Gun 12 | . 28 28 28 28 17 17 3 . Energy Cannon 1 | . . . . . . 1 6 . Ballistic Cannon 3 | . . . . . . . 7 11 Impact Weapon 1 | . . . . . . . 3 3 Peak Build Rating 62 | 7 8 8 9 9 30 47 62 62 Average Rating 36 | 5 7 8 8 9 27 39 46 59 On Entrance 19 | . 7 8 8 9 9 30 46 62 Naked Turns . | . . . . . . . . . Heaviest Build 68 | 14 29 29 29 29 47 56 68 68 Greatest Support 36 | 20 20 20 20 20 24 24 36 36 Greatest Overweight (x) 15 | 1 2 1 1 1 4 5 15 3 Average Overweight (x) 1 | . . 1 1 1 1 2 1 1 Largest Inventory Capacity 20 | 8 15 15 15 15 15 15 15 20 Average Capacity 14 | 7 11 15 15 15 15 15 15 15 Most Carried 15 | 5 13 13 15 15 15 15 15 15 Average Carried 13 | 2 8 13 13 15 14 14 14 14 Final Capacity 15 | 8 15 15 15 15 15 15 15 15 Final Carried 15 | 5 13 13 15 15 15 14 15 13 Class Distribution -------------------- 40% | Mutant 16% | Scavenger-Gunner 7% | Hacker-Mutant 6% | Skirmisher 6% | Hacker-Skirmisher 5% | Gunner 5% | Tank 5% | Scavenger-Mutant 3% | Scavenger-Skirmisher Dominant Class ---------------- Mutant | -10/Materials Mutant | -10/Mines Mutant | -10/Exiles Mutant | -9/Mines Mutant | -8/Materials Skirmisher | -7/Factory Scavenger-Gunner | -7/Garrison Hacker-Mutant | -7/Factory Resources | -11 -10 -10 -10 -9 -8 -7 -7 -7 ----------- Run | Yrd Mat Min Exi Min Mat Fac Gar Fac Matter Collected 2919 | 270 40 . . . 600 331 1026 652 Remotely 390 | . . . . . 390 . . . Salvage Created 7561 | 186 379 . . 82 2602 1832 1730 750 Parts 382 | 15 30 . . 2 132 90 80 33 Haulers Intercepted 7 | . 1 . . . 5 1 . . Recyclers Shooed 5 | . 1 . . 1 2 1 . . Parts Field Recycled . | . . . . . . . . . Retrieved Matter . | . . . . . . . . . Parts Self-Destructed . | . . . . . . . . . Prevented . | . . . . . . . . . Kills | -11 -10 -10 -10 -9 -8 -7 -7 -7 ------- Run | Yrd Mat Min Exi Min Mat Fac Gar Fac Combat Hostiles Destroyed 103 | . 11 . . . 27 14 43 8 Melee 2 | . . . . . . . 2 . Guns 46 | . 10 . . . 22 8 6 . Cannons 33 | . . . . . . 3 22 8 AOE 15 | . . . . . 4 . 11 . Classes Destroyed 15 | 2 7 . . . 3 2 1 . Worker 18 | . 1 . . . 10 3 . 4 Builder 14 | . 2 . . . 6 5 . 1 Tunneler 10 | 5 . . . . 3 1 . 1 Hauler 7 | . 1 . . . 5 1 . . Recycler 18 | 1 . . . 1 5 5 . 6 Mechanic 4 | . . . . . . 4 . . Operator 4 | . 1 . . . 2 1 . . Watcher 11 | . 2 . . . 5 3 . 1 Swarmer 29 | . 9 . . . 8 . 12 . Grunt 38 | . 2 . . . 9 2 23 2 Brawler 2 | . . . . . 1 . 1 . Duelist 3 | . . . . . . . 1 2 Sentry 21 | . . . . . 7 6 6 2 Hunter 4 | . . . . . 2 2 . . Programmer 8 | . . . . . . 4 2 2 Butcher 1 | . . . . . . . 1 . Best Kill Streak 9 | 5 3 . . 1 4 9 5 6 Combat Bots Only 5 | . 3 . . . 4 2 5 4 Max Kills in Single Turn 3 | 1 2 . . 1 3 2 3 1 Gunslinging 1 | . 1 . . . . . . . Exploded 3 | . . . . . 3 . 3 . Melee 1 | . . . . . . . 1 . Uniques/NPCs Destroyed . | . . . . . . . . . Combat | -11 -10 -10 -10 -9 -8 -7 -7 -7 -------- Run | Yrd Mat Min Exi Min Mat Fac Gar Fac Hostile Shots Fired 941 | . 52 . . . 130 312 309 138 Missed 326 | . 16 . . . 40 113 107 50 Hits 615 | . 36 . . . 90 199 202 88 Melee 2 | . . . . . 1 . 1 . Projectile 613 | . 36 . . . 89 199 201 88 AOE 1 | . . . . . . 1 . . Critical Strikes 10 | . . . . . 4 3 3 . Actively Blocked 1 | . . . . . . 1 . . Part Disruptions 1 | . . . . . . . . 1 Damage Taken 7384 | . 384 . . . 1438 2149 2572 841 Core 1111 | . 94 . . . 310 297 292 118 Absorbed by Shields . | . . . . . . . . . Redirected to Shielding 175 | . . . . . 35 140 . . Regen/Repaired (Parts) 454 | . . . . . 323 64 . 67 Core Remaining (%) 68 | 100 . . . 62 43 . . . Volleys Fired 496 | 13 64 6 . 5 180 113 85 30 Largest 3 | 2 2 2 . 2 2 3 3 2 Hottest 187 | 90 90 90 . 90 155 175 187 114 Shots Fired 1122 | 26 127 12 . 10 359 308 233 47 Gun 882 | 26 127 12 . 10 358 273 76 . Cannon 231 | . . . . . . 35 149 47 Launcher 8 | . . . . . . . 8 . Special 1 | . . . . . 1 . . . Kinetic 95 | . . . . . . . 48 47 Thermal 663 | 26 127 12 . 10 167 235 86 . Explosive 8 | . . . . . . . 8 . Electromagnetic 356 | . . . . . 192 73 91 . Robot Hit Streak 25 | 8 7 . . 13 12 17 25 5 Robot Miss Streak 8 | 3 5 . . 1 8 6 3 4 Penetration Max . | . . . . . . . . . Secondary Targets 1 | . 1 . . . . . . . Max Gunslinging Chain 1 | . 1 . . . . . . . Shots Hit Robots 646 | 15 69 . . 8 218 169 136 31 Core Hits 284 | 7 25 . . 3 90 61 84 14 Critical Kills 1 | . . . . . . . 1 . Critical Parts Destroyed 7 | . . . . . . . 4 3 Critical Strikes 31 | 1 2 . . 1 9 5 8 5 Burn 18 | 1 2 . . 1 9 4 1 . Blast 3 | . . . . . . . 1 2 Corrupt 2 | . . . . . . 1 1 . Smash 8 | . . . . . . . 5 3 Melee Attacks 29 | . . . . . . . 21 8 Impact 29 | . . . . . . . 21 8 Slashing . | . . . . . . . . . Piercing . | . . . . . . . . . Sneak Attacks 8 | . . . . . . . . 8 Combat Hostiles . | . . . . . . . . . Follow-up Attacks 4 | . . . . . . . 4 . Damage Inflicted 15810 | 185 767 . . 91 3669 3358 5352 2388 Guns 7926 | 185 767 . . 91 3409 2722 752 . Cannons 4372 | . . . . . . 582 2207 1583 Explosions 2088 | . . . . . 255 54 1756 23 Melee 1419 | . . . . . . . 637 782 Ramming 5 | . . . . . 5 . . . Kinetic 2483 | . . . . . . . 900 1583 Thermal 7386 | 185 767 . . 91 2205 2798 1317 23 Explosive 1518 | . . . . . . . 1518 . Electromagnetic 2999 | . . . . . 1459 560 980 . Impact 1419 | . . . . . . . 637 782 Slashing . | . . . . . . . . . Piercing . | . . . . . . . . . Highest Corruption 10 | . . . . . 5 6 10 10 Average Corruption 7 | . . . . . 1 4 8 10 Corruption Purged . | . . . . . . . . . Corruption Blocked . | . . . . . . . . . Effects 234 | . . . . . 12 26 123 73 Message Errors 58 | . . . . . 7 1 30 20 Matter Fused 52 | . . . . . 2 9 27 14 Heat Flow Errors 32 | . . . . . . 4 14 14 Energy Discharges 22 | . . . . . . 2 13 7 Parts Rejected 2 | . . . . . . . 2 . Parts Fused 3 | . . . . . 2 . 1 . Data Loss (minor) 30 | . . . . . . 7 18 5 Data Loss (major) 13 | . . . . . 1 1 6 5 Misfires 11 | . . . . . . . 6 5 Alerts 5 | . . . . . . . 3 2 Weapon Failures 6 | . . . . . . 2 3 1 Overload Shots . | . . . . . . . . . Overflow Damage 995 | . . . . . 25 33 300 637 Projectiles 215 | . . . . . . 33 49 133 Explosions 30 | . . . . . 25 . 5 . Melee 750 | . . . . . . . 246 504 Knockbacks 10 | . . . . . 1 . 5 4 Impact 2 | . . . . . 1 . . 1 Kinetic 8 | . . . . . . . 5 3 Secondary . | . . . . . . . . . Self-Inflicted Damage 216 | . . . . . 62 . 114 40 Shots 6 | . . . . . 2 . 3 1 Rammed 1 | . . . . . 1 . . . Targets Rammed 1 | . . . . . 1 . . . Kicked . | . . . . . . . . . Crushed . | . . . . . . . . . Highest Temperature 243 | 180 210 160 . 90 210 180 243 195 Average Temperature 57 | 80 62 83 . 46 44 44 66 73 Received Heat Transfer 1809 | . 42 . . . 612 414 516 225 Siege Activations . | . . . . . . . . . Martial Activations . | . . . . . . . . . Shielding Activations . | . . . . . . . . . Robots Disrupted 2 | . . . . . 2 . . . Combat Hostiles 1 | . . . . . 1 . . . Robots Corrupted 7 | . . . . . 3 1 2 1 Combat Hostiles 3 | . . . . . 1 . 2 . Parts Fried 23 | . . . . . 11 4 5 3 Impact Corruptions 23 | . . . . . . . 11 12 Robots Melted 4 | . 1 . . . . 3 . . Combat Hostiles 4 | . 1 . . . . 3 . . Parts Melted 32 | 1 3 . . 1 8 15 4 . Heat Transferred 14943 | 546 2096 . . 310 4754 5119 2068 50 Parts Sabotaged . | . . . . . . . . . Parts Stolen . | . . . . . . . . . Parts Stripped . | . . . . . . . . . Power Chain Reactions 9 | . . . . . 6 1 2 . Alert | -11 -10 -10 -10 -9 -8 -7 -7 -7 ------- Run | Yrd Mat Min Exi Min Mat Fac Gar Fac Maximum Alert Level 5 | . . . . . 2 1 5 4 Low Security (%) 50 | 100 100 100 . 100 70 94 3 . Level 1 8 | . . . . . 19 5 9 . Level 2 3 | . . . . . 9 . 5 . Level 3 3 | . . . . . . . 12 . Level 4 22 | . . . . . . . 29 100 Level 5 10 | . . . . . . . 39 . High Security . | . . . . . . . . . Max Security . | . . . . . . . . . Peak Influence 2953 | 15 82 18 . 5 413 276 2953 1581 Initial 1549 | . . 18 . . . 182 193 1549 Average 634 | 4 26 2 . . 147 75 1425 1302 Influence Increases 5772 | 30 379 . . 5 1068 665 3170 455 Destroy 0b10 Robot/C 2380 | . 220 . . . 560 320 1120 160 Destroy 0b10 Robot/NC 430 | 30 35 . . 5 180 115 . 65 Destroy Leader 456 | . 56 . . . 170 158 20 52 Allied During Kill 117 | . . . . . 15 12 90 . Successful Hack 110 | . 22 . . . 22 14 . 52 Disable Machine 195 | . . . . . 60 . 60 75 Anti-Garrison Action 1600 | . . . . . . . 1600 . Destroy Structure 304 | . 1 . . . 31 16 205 51 Partial Spotted 15 | . 15 . . . . . . . Lose Combat Pursuer 165 | . 30 . . . 30 30 75 . Influence Decreases 4424 | 30 331 48 . 5 668 789 493 2060 Entered New Map 1735 | . . 30 . . . 218 83 1404 Time Decay 2031 | 30 321 18 . 5 587 454 . 616 Lost Part 345 | . 10 . . . 38 107 150 40 Lost Ally 313 | . . . . . 43 10 260 . Squads Dispatched 20 | . 2 . . . 6 7 . 5 Investigation 2 | . . . . . 1 1 . . Extermination 8 | . . . . . . 5 . 3 Reinforcement 5 | . 2 . . . 2 1 . . Assault 2 | . . . . . . . . 2 Garrison 3 | . . . . . 3 . . . Intercept . | . . . . . . . . . Searches Triggered . | . . . . . . . . . Construction Impeded . | . . . . . . . . . Haulers Reinforced . | . . . . . . . . . Active Scanning Responses . | . . . . . . . . . Cargo Convoy Interrupts . | . . . . . . . . . Stealth | -11 -10 -10 -10 -9 -8 -7 -7 -7 --------- Run | Yrd Mat Min Exi Min Mat Fac Gar Fac Distress Signals 6 | . . . . . 5 . . 1 Communications Jammed . | . . . . . . . . . Distress Signals . | . . . . . . . . . Times Spotted 175 | . 23 . . . 50 28 62 12 Peak Tracking Total 12 | . 3 . . . 5 3 12 4 Tactical Retreats 10 | . 2 . . . 2 1 5 . Traps | -11 -10 -10 -10 -9 -8 -7 -7 -7 ------- Run | Yrd Mat Min Exi Min Mat Fac Gar Fac Traps Triggered 12 | . 2 . . . 1 . 8 1 Indirectly . | . . . . . . . . . Trap Hack Attempts . | . . . . . . . . . Triggered . | . . . . . . . . . Disarmed 6 | . . . . . 6 . . . Reprogrammed . | . . . . . . . . . Reused . | . . . . . . . . . Traps Extracted . | . . . . . . . . . Installed . | . . . . . . . . . Triggered . | . . . . . . . . . Machines | -11 -10 -10 -10 -9 -8 -7 -7 -7 ---------- Run | Yrd Mat Min Exi Min Mat Fac Gar Fac Machines Disabled 22 | . . . . . 4 . 13 5 Max in Single Turn 4 | . . . . . 1 . 2 4 Garrison Access 1 | . . . . . . . . 1 Garrison Relay 3 | . . . . . . . 3 . Phase Generator 1 | . . . . . . . 1 . Machines Repaired . | . . . . . . . . . Machines Dismantled . | . . . . . . . . . Machines Sabotaged . | . . . . . . . . . Overloaded Fab Kills . | . . . . . . . . . Hacking | -11 -10 -10 -10 -9 -8 -7 -7 -7 --------- Run | Yrd Mat Min Exi Min Mat Fac Gar Fac Machines Accessed 37 | . 7 . 1 . 14 9 1 5 Terminals 21 | . 5 . . . 9 4 1 2 Fabricators 2 | . . . . . . 2 . . Repair Stations 4 | . . . . . 2 1 . 1 Recycling Units 5 | . 2 . . . 1 1 . 1 Scanalyzers 1 | . . . . . 1 . . . Garrison Access 3 | . . . . . 1 1 . 1 Total Hacks 139 | . 17 . 1 . 80 26 2 13 Successful 71 | . 6 . 1 . 50 10 . 4 Failed 67 | . 11 . . . 29 16 2 9 Catastrophic 11 | . 4 . . . 2 4 . 1 Database Lockouts 1 | . . . . . 1 . . . Manual 76 | . 15 . 1 . 39 16 . 5 Terminals 70 | . 13 . . . 41 11 2 3 Fabricators 5 | . . . . . . 5 . . Repair Stations 26 | . . . . . 19 4 . 3 Recycling Units 13 | . 4 . . . 3 3 . 3 Scanalyzers 13 | . . . . . 13 . . . Garrison Access 11 | . . . . . 4 3 . 4 Terminal Hacks 15 | . 2 . 1 . 12 . . . Robot Analysis 5 | . 2 . . . 3 . . . Level Access Points 1 | . . . . . 1 . . . Branch Access Points 1 | . . . . . 1 . . . Terminal Index 1 | . . . . . 1 . . . Garrison Index 1 | . . . . . 1 . . . Locate Traps 2 | . . . . . 2 . . . Disarm Traps 2 | . . . . . 2 . . . Recall Reinforcements 1 | . . . . . 1 . . . Proto ID Catalog 1 | . . . 1 . . . . . Fabricator Hacks 1 | . . . . . . 1 . . Network Status 1 | . . . . . . 1 . . Repair Station Hacks 23 | . . . . . 17 4 . 2 Scan Component 12 | . . . . . 9 2 . 1 Repair 11 | . . . . . 8 2 . 1 Recycling Unit Hacks 3 | . 1 . . . 1 1 . . Report Inventory 3 | . 1 . . . 1 1 . . Scanalyzer 12 | . . . . . 12 . . . Insert Component 6 | . . . . . 6 . . . Analyze 6 | . . . . . 6 . . . Garrison Access Hacks 2 | . . . . . . 1 . 1 Unlock Access 1 | . . . . . . 1 . . Seal Access 1 | . . . . . . . . 1 Unauthorized Hacks 15 | . 3 . . . 8 3 . 1 Terminals 10 | . 2 . . . 7 1 . . Botnet 7 | . 1 . . . 6 . . . Operators 3 | . 1 . . . 1 1 . . Fabricators 1 | . . . . . . 1 . . Liberate 1 | . . . . . . 1 . . Repair Stations . | . . . . . . . . . Recycling Units 4 | . 1 . . . 1 1 . 1 Reject 4 | . 1 . . . 1 1 . 1 Scanalyzers . | . . . . . . . . . Garrison Access . | . . . . . . . . . Data Cores Recovered 1 | . . . . . . 1 . . Used . | . . . . . . . . . Hacking Detections 31 | . 7 . . . 12 7 1 4 Full Trace Events 3 | . . . . . 2 1 . . Feedback Events 1 | . . . . . 1 . . . Corruption 1 | . . . . . 1 . . . Feedback Blocked . | . . . . . . . . . Robot Schematics Acquired . | . . . . . . . . . Robots Built . | . . . . . . . . . Authchips . | . . . . . . . . . Time . | . . . . . . . . . Total Robot Build Rating . | . . . . . . . . . Part Schematics Acquired 6 | . . . . . 6 . . . Parts Built . | . . . . . . . . . Authchips . | . . . . . . . . . Time . | . . . . . . . . . Total Part Build Rating . | . . . . . . . . . Parts Repaired 11 | . . . . . 8 2 . 1 Time 384 | . . . . . 284 88 . 12 Parts Recycled . | . . . . . . . . . Recycled Matter . | . . . . . . . . . Retrieved Matter . | . . . . . . . . . Retrieved Components . | . . . . . . . . . Parts Scanalyzed 6 | . . . . . 6 . . . Part Schematics Acquired 6 | . . . . . 6 . . . Parts Damaged . | . . . . . . . . . Bothacking | -11 -10 -10 -10 -9 -8 -7 -7 -7 ------------ Run | Yrd Mat Min Exi Min Mat Fac Gar Fac Used RIF Installer . | . . . . . . . . . Robots Hacked . | . . . . . . . . . Non-combat . | . . . . . . . . . Combat . | . . . . . . . . . Robot Hacks Applied . | . . . . . . . . . Relay Couplers Released 13 | . . . . . . . 13 . Machine Destruction 13 | . . . . . . . 13 . Fabnet Peak Effective % . | . . . . . . . . . Robots Rewired 14 | . . . . . 2 . 12 . Allies Hacked 1 | . . . . . . 1 . . Hacks Repelled . | . . . . . . . . . Allies | -11 -10 -10 -10 -9 -8 -7 -7 -7 -------- Run | Yrd Mat Min Exi Min Mat Fac Gar Fac Total Allies 24 | . . . . 3 2 5 14 . Largest Group 6 | . . . . 3 3 3 6 . Highest-Rated Group 120 | . . . . 40 40 74 120 . Highest-Rated Ally 40 | . . . . 16 16 37 40 . Initial Warlord ECA Mod 10 | . . . . . . . . 10 Total Orders 5 | . . . . . 4 1 . . FOLLOW 1 | . . . . . 1 . . . DROP 1 | . . . . . 1 . . . COLLECT 2 | . . . . . 1 1 . . EXPLORE 1 | . . . . . 1 . . . Ally Attacks 135 | . . . . . 24 21 90 . Total Damage 1662 | . . . . . 140 311 1211 . Kills 16 | . . . . . 1 2 13 . Allies Corrupted . | . . . . . . . . . Allies Melted . | . . . . . . . . . Intel | -11 -10 -10 -10 -9 -8 -7 -7 -7 ------- Run | Yrd Mat Min Exi Min Mat Fac Gar Fac Active Infowar (turns) 2275 | 46 1138 168 298 185 440 . . . Traps 316 | . . . . . 316 . . . Seismic 2065 | 46 1138 168 298 185 230 . . . Robot Analysis Total 3 | . 2 . . . 1 . . . Derelict Logs Recovered 2 | . . 1 . 1 . . . . Drone Launches 1 | . . . . . 1 . . . Drone Recoveries 1 | . . . . . 1 . . . Exploration | -11 -10 -10 -10 -9 -8 -7 -7 -7 ------------- Run | Yrd Mat Min Exi Min Mat Fac Gar Fac Turns Passed 14030 | 122 1138 168 298 185 3624 2750 3697 2048 Spaces Moved 8123 | 91 901 135 312 160 2110 1687 1776 951 Core 22 | 21 . . . . . . 1 . Treads . | . . . . . . . . . Legs 1848 | . . . . . . . 897 951 Wheels 6253 | 70 901 135 312 160 2110 1687 878 . Hover . | . . . . . . . . . Flight . | . . . . . . . . . Fastest Speed 50 | 50 80 95 95 95 95 105 105 190 Average Speed 130 | 74 92 95 95 95 104 119 170 196 Slowest Speed 800 | 100 110 95 95 95 140 155 800 330 Overloaded Moves . | . . . . . . . . . Propulsion Burnouts . | . . . . . . . . . Robots Hopped . | . . . . . . . . . Potential Cave-ins . | . . . . . . . . . Cave-ins Triggered . | . . . . . . . . . Exploration Rate (%) 51 | 4 97 42 69 25 89 29 90 14 Regions Visited 8 Branch Regions 3 Pre-discovered Areas 1 | . . 1 . . . . . . Known Exits Taken 2 | . . . . . 1 1 . . Unknown Exits Taken 5 | 1 1 1 1 1 . . . . Scrap Searched . | . . . . . . . . . Spaces Dug 1 | . . . . . 1 . . . Terrain Destroyed 398 | . . . . . 27 11 301 59 Melee . | . . . . . . . . . Projectile 27 | . . . . . 1 9 3 14 AOE 371 | . . . . . 26 2 298 45 Terrain Rammed . | . . . . . . . . . Walls Destroyed . | . . . . . . . . . Machines Disabled . | . . . . . . . . . Actions | -11 -10 -10 -10 -9 -8 -7 -7 -7 --------- Run | Yrd Mat Min Exi Min Mat Fac Gar Fac Total 10516 | 115 1083 162 313 182 3176 2193 2231 1061 Wait 1396 | . 98 22 . 18 765 312 143 38 Move 8115 | 90 900 134 311 159 2109 1686 1775 951 Hop . | . . . . . . . . . Pick Up 92 | 5 12 . 2 . 28 20 19 6 Fast Attach 68 | 7 . . . . 20 15 17 9 Attach 45 | . 1 . . . 10 16 14 4 Detach 18 | . . . . . 3 7 6 2 Swap 28 | . 3 . . . 9 3 11 2 Drop 100 | . 5 . . . 38 20 26 11 Fire 496 | 13 64 6 . 5 180 113 85 30 Melee 25 | . . . . . . . 17 8 Ram 1 | . . . . . 1 . . . Kick . | . . . . . . . . . Crush . | . . . . . . . . . Escape Stasis 42 | . . . . . . . 42 . Rewire 90 | . . . . . 13 1 76 . Trap . | . . . . . . . . . Miscellaneous . | . . . . . . . . . Route ------- -11/Scrapyard -10/Materials (discovered 5 exits: [*Mat x3] / [*Min] / [*Sub]) -10/Mines -10/Exiles -9/Mines -8/Materials (discovered 3 exits: *Fac x3) -7/Factory (discovered 3 exits: [*Fac] / Low / Gar) -7/Garrison (discovered 4 exits: *Fac x4) -7/Factory History --------- Turn | Location | Event 6 | -11/Scrapyard | Discovered new exit (range 15) 123 | -11/Scrapyard | Entered Materials 265 | -10/Materials | Discovered new exit (range 16) 314 | -10/Materials | Build established: Mutant 372 | -10/Materials | Discovered new exit (range 12) 574 | -10/Materials | Discovered new exit (range 16) 651 | -10/Materials | Discovered new exit (range 10) 1133 | -10/Materials | Discovered new exit (range 16) 1261 | -10/Materials | Entered Mines 1289 | -10/Mines | Met a Derelict bent on vengeance 1406 | -10/Mines | Learned location of Storage (-9) 1424 | -10/Mines | Deemed a non-threat by the Exiles lab entrance 1425 | -10/Mines | Discovered new exit (range 5) 1429 | -10/Mines | Entered Exiles 1453 | -10/Exiles | Met 8R-AWN 1468 | -10/Exiles | Met EX-HEX 1504 | -10/Exiles | Met EX-DEC 1525 | -10/Exiles | Met EX-BIN 1539 | -10/Exiles | Aligned with FarCom system 1540 | -10/Exiles | Given EX-Vault access code 1567 | -10/Exiles | Opened EX-Vault 1590 | -10/Exiles | Found Supersonic Drone Bay 1612 | -10/Exiles | Warned to stay clear of 0b10 Research branches 1713 | -10/Exiles | Discovered new exit (range 14) 1727 | -10/Exiles | Left Exiles lab with Supersonic Drone Bay 1727 | -10/Exiles | Entered Mines 1768 | -9/Mines | Discovered new exit (range 9) 1778 | -9/Mines | Assisted by bots powering up and referring to "LRC-V3" 1912 | -9/Mines | Entered Materials 1912 | -8/Materials | Accompanied by 3 allies 1912 | -8/Materials | Evolved 4 slots: Utility x4 3333 | -8/Materials | Discovered new exit (range 12) 3412 | -8/Materials | Repaired Imp. Heat Sink 3472 | -8/Materials | Repaired Hvy. Particle Gun 3506 | -8/Materials | Repaired Hrd. Light Armor Plating 3544 | -8/Materials | Repaired Utility Shielding 3572 | -8/Materials | Repaired Heat Sink 3967 | -8/Materials | Repaired Hrd. Light Armor Plating 3994 | -8/Materials | Repaired Mining Laser 4156 | -8/Materials | Discovered new exit (range 16) 4177 | -8/Materials | Identified exit to Factory 4428 | -8/Materials | Central database locked down 4785 | -8/Materials | Repaired Broken Cooling System 4913 | -8/Materials | Garrison activated, responded to threat 4923 | -8/Materials | Core integrity fell below 50% 5536 | -8/Materials | Entered Factory 5536 | -7/Factory | Accompanied by 1 ally 5536 | -7/Factory | Evolved 2 slots: Utility x1, Weapon x1 5537 | -7/Factory | Identified exit to Lower Caves 6005 | -7/Factory | Build established: Gunner 6124 | -7/Factory | Repaired Arc Projector 6169 | -7/Factory | Repaired Arc Projector 6954 | -7/Factory | Build established: Tank 7369 | -7/Factory | Lost 4 parts (1n2u1w) 7614 | -7/Factory | Build established: Skirmisher 7855 | -7/Factory | Discovered new exit (range 15) 7979 | -7/Factory | Lost 3 parts (1p1n1u) 8283 | -7/Factory | Identified exit to Garrison 8286 | -7/Factory | Entered Garrison 8286 | -7/Garrison | Accompanied by 2 allies 8421 | -7/Garrison | Triggered checkpoint 8585 | -7/Garrison | Build established: Hacker-Skirmisher 8620 | -7/Garrison | Discovered new exit (range 11) 8648 | -7/Garrison | Triggered checkpoint 8676 | -7/Garrison | Discovered new exit (range 5) 8742 | -7/Garrison | Triggered checkpoint 8793 | -7/Garrison | Door terminal overloaded 8793 | -7/Garrison | Rescued a captive Derelict 8801 | -7/Garrison | Rescued a captive Derelict 8809 | -7/Garrison | Lost 3 allies 8810 | -7/Garrison | Garrison Relay disabled 8897 | -7/Garrison | Triggered checkpoint 8947 | -7/Garrison | Triggered checkpoint 9128 | -7/Garrison | Core integrity fell below 50% 9331 | -7/Garrison | Discovered new exit (range 12) 9336 | -7/Garrison | Triggered checkpoint 9427 | -7/Garrison | Phase Generator disabled 9592 | -7/Garrison | Build established: Scavenger-Skirmisher 9650 | -7/Garrison | Lost 4 allies 9668 | -7/Garrison | Lost 4 parts (1p1n2w) 9707 | -7/Garrison | System corruption reached 10% 9718 | -7/Garrison | Lost 4 parts (2n1u1w) 10024 | -7/Garrison | Build established: Scavenger-Mutant 10424 | -7/Garrison | Garrison Relay disabled 10500 | -7/Garrison | Triggered checkpoint 10512 | -7/Garrison | Triggered checkpoint 10626 | -7/Garrison | Triggered checkpoint 10758 | -7/Garrison | Build established: Scavenger-Gunner 11030 | -7/Garrison | Triggered checkpoint 11161 | -7/Garrison | Garrison Relay disabled 11483 | -7/Garrison | Triggered checkpoint 11587 | -7/Garrison | Core integrity fell below 20% 11931 | -7/Garrison | Discovered new exit (range 9) 11956 | -7/Garrison | Triggered checkpoint 11983 | -7/Garrison | Entered Factory 12030 | -7/Factory | Repaired Carbon-fiber Leg 12761 | -7/Factory | Lost 3 parts (1p1n1u) 13004 | -7/Factory | Build established: Hacker-Gunner 13339 | -7/Factory | Build established: Hacker-Mutant 13583 | -7/Factory | First assault squad dispatched 14031 | -7/Factory | Destroyed by G-50 Soldier with Heavy Laser Last Messages --------------- 14017_ K-01 Serf collects debris. 14018_ U-05 Engineer builds a Wall. 14018_ U-05 Engineer lays Concrete. 14021_ U-05 Engineer builds a Wall. 14021_ U-05 Engineer lays Concrete. 14021_ K-01 Serf collects debris. 14022_ U-05 Engineer lays Concrete. 14024_ K-01 Serf collects debris. 14025_ U-05 Engineer lays Concrete. 14025_ C-30 ARC bursts open, deploying its payload. 14025_ G-50 Soldier unfolds itself. 14025_ G-47 Trooper unfolds itself. 14025_ Hvy. Linear Accelerator destroyed. 14025_ U-05 Engineer lays Concrete. 14026_ U-05 Engineer builds a Wall. 14026_ U-05 Engineer lays Concrete. 14029_ U-05 Engineer builds a Wall. 14029_ R-06 Scavenger collects Unknown Treads. 14029_ U-05 Engineer lays Concrete. Map ----- +----------------------------------------------------+ | ?????????????????????????????????????????????????? | | ?????????????????????????????????????????????????? | | ?????????????????????????????????????????????????? | | ?????????????????????????????????????????????????? | | ?????????????????????????????????????????????????? | | ?????????????????????????????????????????????????? | | ?????????????????????????????????????????????????? | | ?????????????????????????????????????????????????? | | ?????????????????????????????????????????????????? | | ?????????????????????????????????????????????????? | | ?????????????????????????????????????????????????? | | ?????????????????????????????????????????????????? | | ?????????????????????????????????????????????????? | | ?????????????????????????????????????????????????? | | ?????????????????????????????????????????????????? | | ?????????????????????????????????????????? ??????? | | ????????????????????????????????????????? ??????? | | ??????????????????????????????????????## ?????? | | ??????????????w?????????????????????? ??????? | | ???????????????????????????????????? ?? ????? | | ??????????????????????????????????? ?? ????? | | ????????????????????????????????######## ???? | | ?????????????????????????????### # ????? | | ???????????????????????????### #######/#????? | | "???????????##############;#;# u[% ??? | | ??? @ uu u [ #?? | | ??????! ?###########;#####; %r #?? | | ????! ?????????? ??# % ??? | | ????? #???????? ?# #?? | | ???? #??????? # #?? | | """"??""" #####? ## #?? | | p # g ### #/# ###??? | | % """"""""" # #??## # # """""""" | | + g#????# # """T""" | | """"""""" # ] #?????## # | | # %######## # | | """"""""" ## + + | | ## ##### # """ """ " | | """"""""" #?? #???# # """ """ " | | ##############????# # """ """ ? | | # #????????#! # ?? | | ####+######## # ]] """=##########%% # ?? | | # # # ] """ +%==! % %%=|!%# ?? | | # + / """ ###########% #######+??? | | # """ # # #????####?# #?????????? | | # !!! """ # # """ #?????????# ????????? | | # !!!^""" # # """ ###### ??????? | | # !! # # """ + ?????? | | # # # ###### ???? | | ######+###### ##########????????## ??? | +----------------------------------------------------+ Best States ------------- Heat Dissipation 88 Coolant Potential 130 Energy Generation 18 Energy Capacity 540 Matter Stores 300 Matter Capacity 300 Sight Range 16 Terrain Scan Density 10 Armor Coverage 150 Utility Shielding 33 Weapon Shielding 66 Evasion (%) 50 Targeting Accuracy 6 Target Analysis 6 Armor Integrity Analysis 30 Particle Charging 15 Offensive Hacking 10 Defensive Hacking 10 Item Schematics ----------------- Hcp. Battery | -8/Materials | Scanalyzed Beam Cannon | -8/Materials | Scanalyzed Hrd. Light Armor Plating | -8/Materials | Scanalyzed Arm. Wheel | -8/Materials | Scanalyzed Imp. Heat Sink | -8/Materials | Scanalyzed Hvy. Ion Engine | -8/Materials | Scanalyzed Robot Schematics ------------------ None Fabricated ------------ Nothing Repaired ---------- Imp. Heat Sink | 30% | -8/Materials Hvy. Particle Gun | 25% | -8/Materials Hrd. Light Armor Plating | 42% | -8/Materials Utility Shielding | 64% | -8/Materials Heat Sink | 76% | -8/Materials Hrd. Light Armor Plating | 74% | -8/Materials Mining Laser | 96% | -8/Materials Cooling System | 26% | -8/Materials | Broken Arc Projector | 20% | -7/Factory Arc Projector | 73% | -7/Factory Carbon-fiber Leg | 39% | -7/Factory Alien Tech Used ----------------- None Achievements -------------- Just Shoot The Terminal Challenges ------------ None Game ------ Seed MultinovaShrapnelSource Manual? 0 Play Time 01:35:33 Cumulative 270.7 hours Start 2025.08.02 @ 19:59:54 End 2025.08.02 @ 23:46:29 Sessions 3 Manual Loads 0 Difficulty Rogue Special Mode None Game No. 245 Rogue 245 Adventurer 0 Explorer 0 Win Type - Total 1 Types 1/0/0/0/0/0/0/0/0/0 Lore% 64 Gallery% 62 Achievement% 48 Wizard Run 0 Options --------- Layout 2 ASCII 1 Keyboard 1 Movement Numpad Keybinds 0 Fullscreen 2 Font 32/TamsynBold Map View 50x44 Zoom Use 0% Tactical HUD 1 Map Filters NONE Filters NONE Steam 1 RUN: 8293770c-8ff3-4754-ac6b-3820e81f9732